fUSD/lending_fUSD_20240630
["ID","MTS","AMOUNT","RATE_DAILY","PERIOD"]
[330746108,1719753053387,-500.0,0.00013984,3]
[330746109,1719753053397,-500.0,0.00013984,3]
[330746110,1719753053407,-500.0,0.00013984,3]
[330746111,1719753053417,-500.0,0.00013984,3]
[330746112,1719753053426,-500.0,0.00013984,3]
[330746113,1719753053435,-500.0,0.00013984,3]
[330746114,1719753053444,-500.0,0.00013984,3]
[330746115,1719753053457,-500.0,0.00013984,3]
[330746116,1719753053467,-500.0,0.00013984,3]
[330746117,1719753053476,-574.3,0.00013984,3]
[330746118,1719753053485,-500.0,0.00013984,3]
[330746119,1719753053495,-615.68,0.00013984,3]
[330746120,1719753053505,-500.0,0.00013984,3]
[330746121,1719753053514,-500.0,0.00013984,3]
[330746122,1719753053524,-500.0,0.00013984,3]
[330746123,1719753053534,-500.0,0.00013984,3]
[330746124,1719753053544,-615.59981199,0.00013984,3]
[330746125,1719753053553,-500.0,0.00013984,3]
[330746126,1719753053564,-500.0,0.00013984,3]
[330746127,1719753053573,-500.0,0.00013984,3]
[330746128,1719753053583,-757.94,0.00013984,3]
[330746129,1719753053592,-500.0,0.00013984,3]
[330746130,1719753053602,-500.0,0.00013984,3]
[330746131,1719753053612,-500.0,0.00013984,3]
[330746132,1719753053621,-822.17,0.00013984,3]
[330746133,1719753053631,-500.0,0.00013984,3]
[330746134,1719753053641,-500.0,0.00013984,3]
[330746135,1719753053651,-500.0,0.00013984,3]
[330746136,1719753053661,-500.0,0.00013984,3]
[330746137,1719753053670,-453.93570309,0.00013984,3]
[330746138,1719753053679,-487.14826539,0.00013984,3]
[330746139,1719753053689,-506.48,0.00013984,3]
[330746140,1719753053699,-500.0,0.00013984,3]
[330746141,1719753053711,-500.0,0.00013984,3]
[330746142,1719753053721,-749.22,0.00013984,3]
[330746143,1719753053732,-960.11,0.00013984,3]
[330746144,1719753053741,-731.88,0.00013984,3]
[330746145,1719753053751,-500.0,0.00013984,3]
[330746146,1719753053765,-500.0,0.00013984,3]
[330746147,1719753053774,-658.51,0.00013984,3]
[330746148,1719753053783,-500.0,0.00013984,3]
[330746149,1719753053793,-1066.84,0.00013984,3]
[330746150,1719753053803,-500.0,0.00013984,3]
[330746151,1719753053813,-506.51,0.00013984,3]
[330746152,1719753053822,-568.04,0.00013984,3]
[330746153,1719753053831,-500.0,0.00013984,3]
[330746154,1719753053844,-500.0,0.00013984,3]
[330746155,1719753053853,-500.0,0.00013984,3]
[330746156,1719753053863,-500.0,0.00013984,3]
[330746157,1719753053873,-500.0,0.00013984,3]
[330746158,1719753053883,-500.0,0.00013984,3]
[330746159,1719753053893,-567.81,0.00013984,3]
[330746160,1719753053902,-640.51,0.00013984,3]
[330746161,1719753053912,-500.0,0.00013984,3]
[330746162,1719753053922,-500.0,0.00013984,3]
[330746163,1719753053932,-500.0,0.00013984,3]
[330746164,1719753053942,-676.78,0.00013984,3]
[330746165,1719753053951,-744.92,0.00013984,3]
[330746166,1719753053963,-549.09,0.00013984,3]
[330746167,1719753053972,-643.76,0.00013984,3]
[330746168,1719753053982,-681.26,0.00013984,3]
[330746169,1719753053992,-902.76,0.00013984,3]
[330746170,1719753054001,-500.0,0.00013984,3]
[330746171,1719753054011,-200.0,0.00013984,2]
[330746172,1719753054021,-719.36,0.00013985,3]
[330746173,1719753054031,-1420.32,0.00013985,3]
[330746174,1719753054040,-1290.89,0.00013985,3]
[330746175,1719753054049,-500.0,0.00013985,3]
[330746176,1719753054058,-500.0,0.00013985,3]
[330746177,1719753054068,-1464.55,0.00013985,3]
[330746178,1719753054078,-1006.18,0.00013985,3]
[330746179,1719753054087,-1520.37,0.00013985,3]
[330746180,1719753054097,-999.02,0.00013985,3]
[330746181,1719753054107,-1713.29,0.00013985,3]
[330746182,1719753054116,-500.0,0.00013985,3]
[330746183,1719753054126,-14736.96,0.00013985,3]
[330746184,1719753054136,-1346.77,0.00013985,3]
[330746185,1719753054147,-1915.4,0.00013985,3]
[330746186,1719753054157,-2689.4,0.00013985,3]
[330746187,1719753054167,-1184.79,0.00013985,3]
[330746188,1719753054176,-1687.66,0.00013985,3]
[330746189,1719753054186,-1274.0,0.00013985,3]
[330746190,1719753054196,-552.96,0.00013985,3]
[330746191,1719753054207,-1395.96,0.00013985,3]
[330746192,1719753054216,-1213.08,0.00013985,3]
[330746193,1719753054227,-1126.07,0.00013985,3]
[330746194,1719753054237,-1659.81,0.00013985,3]
[330746195,1719753054247,-1523.2,0.00013985,3]
[330746196,1719753054256,-950.93,0.00013985,3]
[330746197,1719753054266,-618.58,0.00013985,3]
[330746198,1719753054276,-500.0,0.00013985,3]
[330746199,1719753054286,-866.25,0.00013985,3]
[330746200,1719753054296,-1163.36,0.00013985,3]
[330746201,1719753054306,-3064.7,0.00013985,3]
[330746202,1719753054316,-151.0,0.00013985,2]
[330746203,1719753054325,-487.496602,0.00013985,2]
[330746204,1719753054334,-487.496602,0.00013985,2]
[330746205,1719753054344,-151.0,0.00013985,2]
[330746206,1719753054354,-299.797974,0.00013985,2]
[330746207,1719753054363,-151.0,0.00013985,2]
[330746208,1719753054373,-299.797974,0.00013985,2]
[330746209,1719753054383,-211.152755,0.00013985,2]
[330746210,1719753054392,-151.0,0.00013985,2]
[330746211,1719753054402,-1009.56,0.00013985,3]
[330746212,1719753054412,-668.69,0.00013985,3]
[330746213,1719753054421,-818.68,0.00013985,3]
[330746214,1719753054431,-500.0,0.00013986,3]
[330746215,1719753054440,-500.0,0.00013986,3]
[330746216,1719753054450,-2047.34,0.00013986,3]
[330746217,1719753054463,-530.21532907,0.00013986,3]
[330746218,1719753054497,-614.62,0.00013986,3]
[330746219,1719753054957,-2123.69096423,0.00013986,3]
[330746220,1719753054973,-498.40500001,0.00013986,3]
[330746221,1719753054994,-217.37870669,0.00013986,3]
[330746222,1719753055003,-1295.09856831,0.00013989,2]
[330746223,1719753055014,-1466.79589,0.00013989,2]
[330746224,1719753055024,-318052.11089234,0.00013989,2]
[330746225,1719753055551,-1069.0,0.00013802,2]
[330746226,1719753055561,-5880.72706986,0.00013989,2]
[330746227,1719753055586,-1464.85394051,0.00013989,2]
[330746228,1719753055598,-274.68725396,0.00013989,2]
[330746229,1719753055610,-663.59999999,0.00013989,2]
[330746230,1719753055622,-975.74383455,0.00013989,2]
[330746231,1719753055640,-7140.28595896,0.00013989,2]
[330746232,1719753055652,-495.02165671,0.00013989,2]
[330746233,1719753055669,-59838.62461021,0.00013989,2]
[330746234,1719753055681,-6730.69217821,0.00013989,2]
[330746235,1719753055789,-2016.69421926,0.00013989,2]
[330746236,1719753055803,-2340.52740496,0.00013989,2]
[330746239,1719753150762,150.5,0.0001399,30]
[330746240,1719753151234,219.35,0.0001398,30]
[330746242,1719753224956,5841.27228165,0.00011199,2]
[330746243,1719753230575,6224.99011927,0.00011199,2]
[330746245,1719753270081,150.5,0.0001399,30]
[330746246,1719753270563,206.0,0.0001398,30]
[330746249,1719753445654,659.21,0.00010919,2]
[330746253,1719753544880,544.44616769,0.00011199,2]
[330746256,1719753574945,151.0,0.00020469,120]
[330746265,1719753799863,308.92098149,0.00011199,2]
[330746266,1719753833990,409.88070958,0.00011199,2]
[330746267,1719753952260,305.42303826,0.00011199,2]
[330746268,1719753995945,339.3052287,0.00011199,2]
[330746269,1719754027133,3905.35539231,0.00011199,2]
[330746270,1719754044388,626.24,0.00010644,2]
[330746271,1719754083799,151.0,0.00020469,120]
[330746272,1719754149918,2493.38298312,0.00011199,2]
[330746273,1719754157160,-250.0,0.00012484,2]
[330746274,1719754157183,-2587.3346,0.00012519,2]
[330746280,1719754232107,-300.0,0.00012518,2]
[330746281,1719754232118,-453.70016301,0.00012519,2]
[330746282,1719754232129,-20858.96523699,0.00012519,2]
[330746283,1719754232139,-1000.0,0.00012561,2]
[330746284,1719754232149,-250.0,0.00012585,2]
[330746285,1719754232158,-150.0,0.00012615,2]
[330746286,1719754232167,-192.26,0.0001271,2]
[330746287,1719754232178,-174.49944535,0.000129,2]
[330746288,1719754232188,-181.46560006,0.000129,2]
[330746289,1719754232197,-8465.85202338,0.000129,2]
[330746290,1719754232465,-7500.0,0.000129,2]
[330746291,1719754232475,-2500.0,0.000129,2]
[330746292,1719754232484,-411.55713683,0.000129,2]
[330746293,1719754232493,-1469.60055739,0.000129,2]
[330746294,1719754232526,-732.88314739,0.000129,2]
[330746295,1719754232535,-228.62637256,0.000129,2]
[330746296,1719754232545,-626.24,0.00012908,2]
[330746297,1719754232557,-150.99,0.00012917,2]
[330746298,1719754232569,-270.65822732,0.0001297,2]
[330746299,1719754232581,-229.33177268,0.0001297,2]
[330746300,1719754232590,-1556.34,0.0001297,2]
[330746301,1719754232600,-374.30272455,0.00013,2]
[330746304,1719754232637,-600.0,0.00013,2]
[330746307,1719754232651,-1000.0,0.00013,2]
[330746311,1719754232724,-697.11121979,0.00013,2]
[330746312,1719754232735,-3578.37736849,0.00013,2]
[330746313,1719754232747,-112600.85598839,0.00013,2]
[330746314,1719754238359,-305.42303826,0.00012314,2]
[330746316,1719754238369,-28289.92509793,0.00013,2]
[330746317,1719754238381,-30963.59706,0.00013,2]
[330746318,1719754238393,-33017.57440624,0.00013,2]
[330746319,1719754238404,-40188.70718728,0.00013,2]
[330746320,1719754238443,-6153.896,0.00013,2]
[330746321,1719754238454,-45719.13836054,0.00013,2]
[330746322,1719754238518,-239802.35051572,0.00013,2]
[330746323,1719754238778,-7208.2913,0.00013,2]
[330746324,1719754238790,-835.77,0.00013,2]
[330746325,1719754238803,-566.34980186,0.00013,2]
[330746326,1719754238814,-572357.32387447,0.00013,2]
[330746330,1719754240147,-15534.51933874,0.00013,2]
[330746331,1719754240161,-303.78677249,0.00013,2]
[330746332,1719754240233,-1032.75,0.00013,2]
[330746333,1719754240246,-460.56973873,0.00013,2]
[330746334,1719754240260,-7177.7,0.00013,2]
[330746335,1719754240273,-2556.58178938,0.00013,2]
[330746336,1719754240454,-86780.78830315,0.00013,2]
[330746337,1719754240467,-156663.93335696,0.00013,2]
[330746338,1719754240480,-107739.52104767,0.00013,2]
[330746372,1719754243239,-9901.98761922,0.00013,2]
[330746373,1719754243252,-625.98482798,0.00013,2]
[330746374,1719754243324,-2930.15933922,0.00013,2]
[330746375,1719754243336,-305.3305634,0.00013,2]
[330746376,1719754243348,-154943.48377521,0.00013,2]
[330746377,1719754243359,-682.52581,0.00013,2]
[330746378,1719754243372,-670.14303817,0.00013,2]
[330746379,1719754243385,-145152.809282,0.00013,2]
[330746380,1719754243547,-457.46955249,0.00013,2]
[330746381,1719754243561,-1381.05676272,0.00013,2]
[330746382,1719754243572,-7062.5,0.00013,2]
[330746383,1719754243584,-1058.55765,0.00013,2]
[330746384,1719754243595,-494.34168123,0.00013,2]
[330746385,1719754243664,-500.0,0.00013,2]
[330746386,1719754243677,-12354.75774777,0.00013,2]
[330746412,1719754246284,-2439.54653718,0.00013,2]
[330746414,1719754246295,-542.53107426,0.00013,2]
[330746416,1719754246306,-851.41252935,0.00013,2]
[330746423,1719754246437,-366.97169678,0.00013,2]
[330746424,1719754246449,-343.17574675,0.00013,2]
[330746425,1719754246459,-658.06428119,0.00013,2]
[330746426,1719754246488,-470.22347517,0.00013,2]
[330746427,1719754246588,-959.66047797,0.00013,2]
[330746428,1719754246688,-6856.4783008,0.00013,2]
[330746429,1719754246699,-41285.31494061,0.00013,2]
[330746430,1719754246710,-28412.58664306,0.00013,2]
[330746431,1719754246722,-2535.44900344,0.00013,2]
[330746432,1719754246733,-18453.50087886,0.00013,2]
[330746433,1719754246744,-17140.91276986,0.00013,2]
[330746450,1719754402896,2493.38298312,0.00011199,2]
[330746451,1719754458001,24707.83008993,0.00011199,2]
[330746452,1719754514920,151.0,0.00020469,120]
[330746453,1719754543926,2944.67779259,0.000112,2]
[330746456,1719754552152,18225.23079513,0.00011199,2]
[330746464,1719754633760,2493.38298312,0.00011199,2]
[330746472,1719754708993,10537.00283536,0.00011199,2]
[330746474,1719754719260,610.67,0.00010227,2]
[330746475,1719754732834,1458.35370028,0.00011199,2]
[330746478,1719754848029,464.01698806,0.00011199,2]
[330746479,1719754882866,2493.38298312,0.00011199,2]
[330746480,1719754903385,19613.70069678,0.00011199,2]
[330746481,1719754910998,4713.24960871,0.00011199,2]
[330746482,1719754913422,151.0,0.00020469,120]
[330746483,1719754944958,200.16791626,0.00011199,4]
[330746484,1719754953996,1251.71322753,0.00011199,2]
[330746485,1719754993724,205.32220319,0.00011199,2]
[330746486,1719755007683,2276.08847066,0.00011199,2]
[330746487,1719755030381,156.4774398,0.00011199,2]
[330746490,1719755038058,3023.727209,0.00011199,2]
[330746491,1719755083531,339.45186376,0.00011199,2]
[330746492,1719755125318,305.42303826,0.00011199,2]
[330746494,1719755178531,151.0,0.00020469,120]
[330746495,1719755178880,1934.04680283,0.00011199,2]
[330746496,1719755192896,2375.74966593,0.00011199,2]
[330746497,1719755243007,2198.85723835,0.00011199,2]
[330746498,1719755285071,523.65374717,0.00011199,2]
[330746499,1719755316120,1012.87391772,0.00011199,2]
[330746504,1719755344261,1329.43311787,0.00011199,2]
[330746506,1719755356639,1269.62890364,0.00011199,2]
[330746511,1719755371634,580.13,9.45e-05,2]
[330746514,1719755386410,1608.98615,0.00011199,2]
[330746516,1719755430106,1133.92751376,0.00011199,2]
[330746525,1719755433099,-204.50554,0.00011275,2]
[330746526,1719755433110,-250.0,0.00011332,2]
[330746527,1719755433121,-500.0,0.0001135,2]
[330746528,1719755433133,-319.91,0.00011444,2]
[330746529,1719755433144,-300.0,0.00011567,2]
[330746531,1719755433155,-23900.0,0.00011568,2]
[330746533,1719755433167,-1751.6749,0.00011589,2]
[330746535,1719755433177,-250.0,0.00011622,2]
[330746536,1719755433188,-165.26,0.00011634,2]
[330746537,1719755433200,-1222.0,0.00011655,2]
[330746538,1719755433213,-800.0,0.00011689,2]
[330746539,1719755433224,-7884.3,0.00011689,2]
[330746540,1719755433235,-536.4,0.00011689,2]
[330746541,1719755433246,-183.77455708,0.000117,2]
[330746542,1719755433258,-580.13,0.00011713,2]
[330746543,1719755433268,-4390.74500292,0.00011736,2]
[330746544,1719755433301,-567.14,0.00011736,2]
[330746545,1719755433314,-679.35596438,0.00011736,2]
[330746546,1719755433328,-1955.1890327,0.00011736,2]
[330746547,1719755433339,-15468.88371274,0.00011757,2]
[330746548,1719755433353,-2686.00226037,0.00011757,2]
[330746549,1719755433366,-684.71908266,0.00011757,2]
[330746550,1719755433380,-541.0092199,0.00011757,2]
[330746551,1719755433395,-669.94125223,0.00011757,2]
[330746552,1719755433436,-865.46028817,0.00011757,2]
[330746553,1719755433453,-502.90722895,0.00011757,2]
[330746554,1719755433466,-857.25,0.00011757,2]
[330746556,1719755433479,-8311.72992793,0.00011757,2]
[330746558,1719755433492,-32018.31119521,0.00011757,2]
[330746560,1719755433506,-68928.86870524,0.00011757,2]
[330746561,1719755433518,-438.97877864,0.00011757,2]
[330746562,1719755433532,-990.62845519,0.00011757,2]
[330746578,1719755438502,-37952.68409265,0.00011757,2]
[330746581,1719755438611,-1286.51473513,0.00011757,2]
[330746582,1719755438623,-103798.24369849,0.00011757,2]
[330746583,1719755438715,-3567.95049968,0.00011757,2]
[330746584,1719755438728,-12133.84786113,0.00011757,2]
[330746585,1719755438740,-1520.39891193,0.00011757,2]
[330746586,1719755438752,-415959.67009376,0.00011757,2]
[330746587,1719755438763,-750.0,0.000118,2]
[330746588,1719755438773,-168.28,0.00011862,2]
[330746589,1719755438782,-150.0,0.00011973,2]
[330746590,1719755438792,-150.99,0.00011973,2]
[330746591,1719755438803,-500.0,0.0001198,2]
[330746592,1719755438813,-659.16,0.00011995,2]
[330746593,1719755438823,-183.77455705,0.00012007,2]
[330746594,1719755438832,-200.0,0.0001215,2]
[330746595,1719755438841,-35651.34853887,0.00012229,2]
[330746596,1719755438850,-227.04865744,0.00012273,2]
[330746597,1719755438860,-418.84,0.000123,2]
[330746598,1719755438870,-1000.0,0.00012302,2]
[330746599,1719755438879,-205.32220319,0.00012302,2]
[330746600,1719755438889,-183.77455705,0.00012314,2]
[330746601,1719755438899,-418.84,0.000124,2]
[330746602,1719755438909,-500.0,0.000126,2]
[330746603,1719755438919,-183.77455705,0.00012621,2]
[330746604,1719755438928,-162.86944678,0.000127,2]
[330746605,1719755438938,-7500.0,0.000127,2]
[330746606,1719755438947,-182.50213134,0.000127,2]
[330746607,1719755438957,-168.07414263,0.000127,2]
[330746608,1719755438966,-8379.25468927,0.000127,2]
[330746609,1719755438975,-420.0,0.00012704,2]
[330746610,1719755438987,-189.97,0.00012706,2]
[330746611,1719755438997,-499.99,0.00012706,2]
[330746612,1719755439006,-100000.0,0.0001277,2]
[330746613,1719755439016,-200.0,0.00012772,2]
[330746614,1719755439026,-413.07503758,0.00012789,2]
[330746615,1719755439036,-958.48802596,0.00012799,2]
[330746616,1719755439046,-245000.0,0.000128,2]
[330746617,1719755439056,-1000.0,0.000128,2]
[330746619,1719755439067,-284595.4988,0.000129,2]
[330746621,1719755439077,-2507.11055754,0.000129,2]
[330746623,1719755439086,-2507.11055748,0.000129,2]
[330746624,1719755439096,-2507.11055748,0.000129,2]
[330746625,1719755439107,-2507.11055748,0.000129,2]
[330746626,1719755439117,-183.77455705,0.00012928,2]
[330746627,1719755439127,-228.17383828,0.00012935,2]
[330746628,1719755439137,-3179.0,0.00012986,2]
[330746629,1719755439148,-150.0,0.00012999,2]
[330746630,1719755439159,-1248153.24567039,0.00013,2]
[330746631,1719755439172,-633528.60432963,0.00013,2]
[330746636,1719755440647,-305.05313882,0.00012314,2]
[330746637,1719755440657,-16840.14198871,0.00013,2]
[330746638,1719755440705,-1262998.03329646,0.00013,2]
[330746639,1719755440715,-2507.11055748,0.00013035,2]
[330746640,1719755440726,-212.39466898,0.00013128,2]
[330746641,1719755440735,-182.50213131,0.00013145,2]
[330746642,1719755440745,-800.0,0.0001315,2]
[330746643,1719755440755,-500.0,0.0001323,2]
[330746644,1719755440764,-2507.11055748,0.00013369,2]
[330746645,1719755440774,-8379.25468919,0.00013445,2]
[330746646,1719755440783,-860.22500001,0.00013472,2]
[330746647,1719755440793,-1792.0,0.00013477,2]
[330746648,1719755440802,-1000.0,0.000135,2]
[330746649,1719755440812,-597.80485648,0.00013516,2]
[330746650,1719755440821,-221.33154658,0.00013516,4]
[330746651,1719755440831,-650.33398669,0.00013516,2]
[330746652,1719755440840,-221.33154658,0.00013516,4]
[330746653,1719755440850,-533.17716908,0.00013543,2]
[330746654,1719755440859,-705.0,0.00013543,2]
[330746655,1719755440869,-253.90432169,0.00013543,2]
[330746656,1719755440879,-155.0,0.00013543,2]
[330746657,1719755440889,-518.04242089,0.00013543,2]
[330746658,1719755440899,-156.67050622,0.00013543,2]
[330746659,1719755440908,-500.0,0.00013543,2]
[330746660,1719755440917,-165.26,0.00013573,2]
[330746661,1719755440927,-182.50213131,0.00013591,2]
[330746662,1719755440937,-978.0,0.00013591,2]
[330746663,1719755440946,-1000.0,0.000136,2]
[330746664,1719755441249,-500.0,0.00013698,3]
[330746665,1719755441259,-500.0,0.00013698,3]
[330746666,1719755441269,-500.0,0.00013698,3]
[330746667,1719755441278,-642.55,0.00013698,3]
[330746668,1719755441288,-500.0,0.00013698,3]
[330746669,1719755441297,-500.0,0.00013698,3]
[330746670,1719755441307,-1492.12,0.00013698,3]
[330746671,1719755441316,-500.0,0.00013698,3]
[330746672,1719755441325,-526.54,0.00013698,3]
[330746673,1719755441334,-500.0,0.00013698,3]
[330746674,1719755441344,-518.76,0.00013698,3]
[330746675,1719755441353,-500.0,0.00013698,3]
[330746676,1719755441362,-500.0,0.00013698,3]
[330746677,1719755441372,-554.07,0.00013698,3]
[330746678,1719755441382,-500.0,0.00013698,3]
[330746679,1719755441392,-500.0,0.00013698,3]
[330746680,1719755441402,-500.0,0.00013698,3]
[330746681,1719755441412,-500.0,0.00013698,3]
[330746682,1719755441421,-500.0,0.00013698,3]
[330746683,1719755441431,-500.0,0.00013698,3]
[330746684,1719755441440,-500.0,0.00013698,3]
[330746685,1719755441450,-500.0,0.00013698,3]
[330746686,1719755441460,-1000.0,0.00013698,2]
[330746687,1719755441470,-500.0,0.00013698,3]
[330746688,1719755441480,-500.0,0.00013698,3]
[330746689,1719755441489,-500.0,0.00013698,3]
[330746690,1719755441499,-313.39,0.00013698,3]
[330746691,1719755441512,-500.0,0.00013698,3]
[330746692,1719755441522,-500.0,0.00013698,3]
[330746693,1719755441532,-500.0,0.00013698,3]
[330746694,1719755441542,-500.0,0.00013698,3]
[330746695,1719755441552,-453.01513656,0.00013698,2]
[330746696,1719755441561,-500.0,0.00013698,3]
[330746697,1719755441574,-500.0,0.00013698,2]
[330746698,1719755441584,-1182.32,0.00013698,3]
[330746699,1719755441593,-500.0,0.00013698,3]
[330746700,1719755441603,-500.0,0.00013698,3]
[330746701,1719755441613,-500.0,0.00013698,3]
[330746702,1719755441623,-363.81910465,0.00013698,3]
[330746703,1719755441633,-500.0,0.00013698,3]
[330746704,1719755441644,-500.0,0.00013698,3]
[330746705,1719755441655,-500.0,0.00013698,3]
[330746706,1719755441666,-500.0,0.00013698,3]
[330746707,1719755441675,-500.0,0.00013698,3]
[330746708,1719755441684,-500.0,0.00013698,3]
[330746709,1719755441694,-449.7442658,0.00013698,3]
[330746710,1719755441703,-500.0,0.00013698,3]
[330746711,1719755441714,-500.0,0.00013698,3]
[330746712,1719755441724,-500.0,0.00013698,3]
[330746713,1719755441733,-500.0,0.00013698,3]
[330746714,1719755441743,-505.0,0.00013698,3]
[330746715,1719755441752,-500.0,0.00013698,3]
[330746716,1719755441762,-500.0,0.00013698,2]
[330746717,1719755441771,-500.0,0.00013698,3]
[330746718,1719755441780,-500.0,0.00013698,3]
[330746719,1719755441789,-500.0,0.00013698,3]
[330746720,1719755441799,-500.0,0.00013698,3]
[330746721,1719755441808,-151.0,0.00013698,2]
[330746722,1719755441817,-500.0,0.00013698,3]
[330746723,1719755441826,-500.0,0.00013698,3]
[330746724,1719755441835,-500.0,0.00013698,3]
[330746725,1719755441845,-500.0,0.00013698,3]
[330746726,1719755441854,-500.0,0.00013698,3]
[330746727,1719755441864,-500.0,0.00013698,3]
[330746728,1719755441876,-500.0,0.00013698,3]
[330746729,1719755441886,-189.9264,0.00013698,2]
[330746730,1719755441896,-561.37,0.00013698,3]
[330746731,1719755441905,-189.9264,0.00013698,2]
[330746732,1719755441915,-500.0,0.00013698,3]
[330746733,1719755441925,-151.0,0.00013698,2]
[330746734,1719755441934,-500.0,0.00013698,3]
[330746735,1719755441943,-500.0,0.00013698,3]
[330746736,1719755441953,-500.0,0.00013698,3]
[330746737,1719755441962,-500.0,0.00013698,3]
[330746738,1719755441971,-500.0,0.00013698,3]
[330746739,1719755441981,-500.0,0.00013698,3]
[330746740,1719755441991,-500.0,0.00013698,3]
[330746741,1719755442001,-500.0,0.00013698,3]
[330746742,1719755442010,-500.0,0.00013698,3]
[330746743,1719755442020,-900.1,0.00013698,3]
[330746744,1719755442030,-500.0,0.00013698,3]
[330746745,1719755442040,-500.0,0.00013698,3]
[330746746,1719755442050,-500.0,0.00013698,2]
[330746747,1719755442059,-151.0,0.00013698,2]
[330746748,1719755442069,-500.0,0.00013698,3]
[330746749,1719755442078,-500.0,0.00013698,3]
[330746750,1719755442088,-694.23,0.00013698,3]
[330746751,1719755442097,-500.0,0.00013698,3]
[330746752,1719755442107,-595.19117503,0.00013698,3]
[330746753,1719755442117,-172.09,0.00013698,3]
[330746754,1719755442126,-151.0,0.00013698,2]
[330746755,1719755442136,-500.0,0.00013698,3]
[330746756,1719755442146,-500.0,0.00013698,3]
[330746757,1719755442155,-500.0,0.00013698,3]
[330746758,1719755442165,-500.0,0.00013698,3]
[330746759,1719755442175,-500.0,0.00013698,3]
[330746760,1719755442184,-554.48,0.00013698,3]
[330746761,1719755442194,-500.0,0.00013698,3]
[330746762,1719755442203,-500.0,0.00013698,3]
[330746763,1719755442213,-500.0,0.00013698,3]
[330746764,1719755442223,-500.0,0.00013698,3]
[330746765,1719755442232,-500.0,0.00013698,3]
[330746766,1719755442241,-500.0,0.00013698,3]
[330746767,1719755442251,-151.0,0.00013698,2]
[330746768,1719755442260,-151.0,0.00013698,2]
[330746769,1719755442270,-151.0,0.00013698,2]
[330746770,1719755442279,-500.0,0.00013698,3]
[330746771,1719755442289,-500.0,0.00013698,3]
[330746772,1719755442298,-500.0,0.00013698,3]
[330746773,1719755442307,-500.0,0.00013698,3]
[330746774,1719755442317,-182.861239,0.00013698,2]
[330746775,1719755442327,-500.0,0.00013698,3]
[330746776,1719755442336,-500.0,0.00013698,3]
[330746777,1719755442346,-182.861239,0.00013698,2]
[330746778,1719755442357,-151.0,0.00013698,2]
[330746779,1719755442367,-500.0,0.00013698,3]
[330746780,1719755442376,-194.6148,0.00013698,2]
[330746781,1719755442386,-500.0,0.00013698,3]
[330746782,1719755442397,-151.0,0.00013698,2]
[330746783,1719755442407,-500.0,0.00013698,3]
[330746784,1719755442416,-194.6148,0.00013698,2]
[330746785,1719755442426,-500.0,0.00013698,2]
[330746786,1719755442435,-500.0,0.00013698,3]
[330746787,1719755442445,-151.0,0.00013698,2]
[330746788,1719755442455,-151.0,0.00013698,2]
[330746789,1719755442465,-500.0,0.00013698,3]
[330746790,1719755442474,-151.0,0.00013698,2]
[330746791,1719755442483,-151.0,0.00013698,2]
[330746792,1719755442493,-593.15,0.00013698,3]
[330746793,1719755442503,-500.0,0.00013698,3]
[330746794,1719755442512,-500.0,0.00013698,3]
[330746795,1719755442522,-500.0,0.00013698,3]
[330746796,1719755442531,-500.0,0.00013698,3]